lending/lending_fUSD_20240512
["ID","MTS","AMOUNT","RATE_DAILY","PERIOD"]
[326885747,1715541052430,-832.03,0.00012328,2]
[326885749,1715541052439,-500.0,0.00012328,2]
[326885751,1715541052448,-1146.29,0.00012328,2]
[326885753,1715541052459,-832.11,0.00012328,2]
[326885755,1715541052468,-500.0,0.00012328,2]
[326885757,1715541052478,-500.0,0.00012328,2]
[326885760,1715541052487,-1146.29,0.00012328,2]
[326885762,1715541052496,-500.0,0.00012328,2]
[326885764,1715541052505,-1146.29,0.00012328,2]
[326885765,1715541052514,-500.0,0.00012328,2]
[326885768,1715541052523,-500.0,0.00012328,2]
[326885769,1715541052532,-1146.29,0.00012328,2]
[326885771,1715541052541,-500.0,0.00012328,2]
[326885773,1715541052550,-500.0,0.00012328,2]
[326885775,1715541052559,-500.0,0.00012328,2]
[326885777,1715541052569,-258.43851997,0.00012328,2]
[326885780,1715541052578,-500.0,0.00012328,2]
[326885781,1715541052587,-1146.29,0.00012328,2]
[326885783,1715541052596,-500.0,0.00012328,2]
[326885786,1715541052605,-315.00527112,0.00012328,2]
[326885788,1715541052615,-1146.29,0.00012328,2]
[326885790,1715541052624,-500.0,0.00012328,2]
[326885791,1715541052633,-1146.29,0.00012328,2]
[326885792,1715541052642,-1146.29,0.00012328,2]
[326885793,1715541052651,-500.0,0.00012328,2]
[326885794,1715541052660,-1146.29,0.00012328,2]
[326885795,1715541052669,-1146.29,0.00012328,2]
[326885796,1715541052678,-1146.29,0.00012328,2]
[326885797,1715541052687,-500.0,0.00012328,2]
[326885798,1715541052696,-1146.29,0.00012328,2]
[326885799,1715541052706,-500.0,0.00012328,2]
[326885801,1715541052715,-1146.32,0.00012328,2]
[326885803,1715541052724,-500.0,0.00012328,2]
[326885805,1715541052733,-500.0,0.00012328,2]
[326885807,1715541052742,-500.0,0.00012328,2]
[326885809,1715541052751,-500.0,0.00012328,2]
[326885811,1715541052760,-670.38,0.00012328,2]
[326885813,1715541052770,-500.0,0.00012328,2]
[326885815,1715541052780,-611.25677385,0.00012328,2]
[326885817,1715541052789,-670.38,0.00012328,2]
[326885819,1715541052799,-670.38,0.00012328,2]
[326885821,1715541052809,-670.38,0.00012328,2]
[326885823,1715541052818,-500.0,0.00012328,2]
[326885825,1715541052827,-670.38,0.00012328,2]
[326885827,1715541052836,-500.0,0.00012328,2]
[326885829,1715541052845,-500.0,0.00012328,2]
[326885831,1715541052855,-500.0,0.00012328,2]
[326885833,1715541052864,-500.0,0.00012328,2]
[326885835,1715541052873,-500.0,0.00012328,2]
[326885837,1715541052882,-500.0,0.00012328,2]
[326885839,1715541052891,-500.0,0.00012328,2]
[326885841,1715541052900,-500.0,0.00012328,2]
[326885843,1715541052909,-500.0,0.00012328,2]
[326885845,1715541052920,-500.0,0.00012328,2]
[326885847,1715541052930,-500.0,0.00012328,2]
[326885849,1715541052939,-500.0,0.00012328,2]
[326885851,1715541052948,-500.0,0.00012328,2]
[326885853,1715541052959,-500.0,0.00012328,2]
[326885855,1715541052968,-500.0,0.00012328,2]
[326885857,1715541052978,-500.0,0.00012328,2]
[326885859,1715541052988,-500.0,0.00012328,2]
[326885860,1715541052999,-500.0,0.00012328,2]
[326885862,1715541053008,-565.43787957,0.00012328,2]
[326885864,1715541053017,-500.0,0.00012328,2]
[326885866,1715541053027,-500.0,0.00012328,2]
[326885868,1715541053036,-500.0,0.00012328,2]
[326885870,1715541053045,-624.22278294,0.00012328,2]
[326885872,1715541053054,-500.0,0.00012328,2]
[326885874,1715541053063,-500.0,0.00012328,2]
[326885876,1715541053072,-500.0,0.00012328,2]
[326885879,1715541053081,-500.0,0.00012328,2]
[326885881,1715541053090,-532.12345802,0.00012328,2]
[326885883,1715541053099,-670.38,0.00012328,2]
[326885885,1715541053109,-670.38,0.00012328,2]
[326885886,1715541053118,-670.38,0.00012328,2]
[326885888,1715541053128,-670.38,0.00012328,2]
[326885890,1715541053137,-492.20522143,0.00012328,2]
[326885892,1715541053148,-670.38,0.00012328,2]
[326885894,1715541053157,-746.56,0.00012328,2]
[326885896,1715541053166,-670.38,0.00012328,2]
[326885898,1715541053175,-746.56,0.00012328,2]
[326885900,1715541053185,-746.56,0.00012328,2]
[326885902,1715541053194,-670.38,0.00012328,2]
[326885904,1715541053205,-746.56,0.00012328,2]
[326885906,1715541053214,-670.38,0.00012328,2]
[326885908,1715541053222,-670.38,0.00012328,2]
[326885910,1715541053231,-746.56,0.00012328,2]
[326885912,1715541053240,-670.38,0.00012328,2]
[326885914,1715541053249,-746.56,0.00012328,2]
[326885916,1715541053258,-670.38,0.00012328,2]
[326885918,1715541053267,-746.56,0.00012328,2]
[326885920,1715541053277,-670.38,0.00012328,2]
[326885922,1715541053286,-500.0,0.00012328,2]
[326885924,1715541053295,-746.56,0.00012328,2]
[326885926,1715541053303,-670.38,0.00012328,2]
[326885928,1715541053312,-746.56,0.00012328,2]
[326885930,1715541053321,-670.38,0.00012328,2]
[326885932,1715541053330,-746.56,0.00012328,2]
[326885934,1715541053339,-500.0,0.00012328,2]
[326885936,1715541053348,-670.38,0.00012328,2]
[326885938,1715541053358,-976.78,0.00012328,2]
[326885940,1715541053366,-746.56,0.00012328,2]
[326885942,1715541053376,-670.38,0.00012328,2]
[326885944,1715541053385,-976.78,0.00012328,2]
[326885946,1715541053394,-746.56,0.00012328,2]
[326885948,1715541053403,-670.38,0.00012328,2]
[326885950,1715541053412,-746.56,0.00012328,2]
[326885952,1715541053421,-976.78,0.00012328,2]
[326885954,1715541053430,-670.38,0.00012328,2]
[326885956,1715541053439,-746.56,0.00012328,2]
[326885958,1715541053449,-976.78,0.00012328,2]
[326885960,1715541053458,-746.56,0.00012328,2]
[326885962,1715541053468,-976.78,0.00012328,2]
[326885964,1715541053476,-670.44465304,0.00012328,2]
[326885966,1715541053487,-746.56,0.00012328,2]
[326885968,1715541053497,-976.78,0.00012328,2]
[326885970,1715541053505,-746.56,0.00012328,2]
[326885972,1715541053515,-976.78,0.00012328,2]
[326885974,1715541053525,-746.56,0.00012328,2]
[326885976,1715541053534,-500.0,0.00012328,2]
[326885978,1715541053543,-976.78,0.00012328,2]
[326885980,1715541053552,-746.56,0.00012328,2]
[326885982,1715541053561,-500.0,0.00012328,2]
[326885984,1715541053570,-976.78,0.00012328,2]
[326885986,1715541053579,-746.56,0.00012328,2]
[326885988,1715541053588,-500.0,0.00012328,2]
[326885990,1715541053598,-151.0,0.00012328,2]
[326885992,1715541053607,-500.0,0.00012328,2]
[326885994,1715541053616,-976.78,0.00012328,2]
[326885996,1715541053626,-155.32334,0.00012328,2]
[326885998,1715541053634,-746.56,0.00012328,2]
[326886000,1715541053644,-500.0,0.00012328,2]
[326886002,1715541053652,-976.78,0.00012328,2]
[326886004,1715541053662,-500.0,0.00012328,2]
[326886006,1715541053671,-746.56,0.00012328,2]
[326886008,1715541053680,-976.78,0.00012328,2]
[326886010,1715541053689,-500.0,0.00012328,2]
[326886012,1715541053699,-746.56,0.00012328,2]
[326886014,1715541053708,-976.78,0.00012328,2]
[326886016,1715541053717,-746.76242547,0.00012328,2]
[326886018,1715541053726,-976.78,0.00012328,2]
[326886020,1715541053735,-976.78,0.00012328,2]
[326886022,1715541053744,-976.78,0.00012328,2]
[326886024,1715541053753,-976.78,0.00012328,2]
[326886026,1715541053762,-976.78,0.00012328,2]
[326886028,1715541053771,-500.0,0.00012328,2]
[326886030,1715541053780,-500.0,0.00012328,2]
[326886033,1715541053789,-976.78,0.00012328,2]
[326886034,1715541053799,-500.0,0.00012328,2]
[326886036,1715541053808,-976.78,0.00012328,2]
[326886038,1715541053817,-976.78,0.00012328,2]
[326886040,1715541053830,-500.0,0.00012328,2]
[326886043,1715541053839,-500.0,0.00012328,2]
[326886044,1715541053848,-976.78,0.00012328,2]
[326886047,1715541053857,-238.01197599,0.00012328,2]
[326886049,1715541053866,-976.78,0.00012328,2]
[326886051,1715541053876,-976.96389277,0.00012328,2]
[326886053,1715541053885,-500.0,0.00012328,2]
[326886054,1715541053895,-500.0,0.00012328,2]
[326886056,1715541053904,-500.0,0.00012328,2]
[326886058,1715541053914,-113.28448814,0.00012328,2]
[326886168,1715541055000,-1015.0,0.00012256,2]
[326886170,1715541055010,-1144.9726876,0.00012327,2]
[326886188,1715541055166,-24.82193559,0.00012327,2]
[326886190,1715541055175,-386.71551186,0.00012328,2]
[326886192,1715541055184,-500.0,0.00012328,2]
[326886194,1715541055193,-500.0,0.00012328,2]
[326886196,1715541055204,-151.0,0.00012328,2]
[326886198,1715541055213,-500.0,0.00012328,2]
[326886200,1715541055222,-151.0,0.00012328,2]
[326886202,1715541055231,-151.0,0.00012328,2]
[326886204,1715541055241,-500.0,0.00012328,2]
[326886206,1715541055250,-153.701402,0.00012328,2]
[326886208,1715541055259,-500.0,0.00012328,2]
[326886210,1715541055268,-500.0,0.00012328,2]
[326886212,1715541055277,-500.0,0.00012328,2]
[326886214,1715541055286,-500.0,0.00012328,2]
[326886216,1715541055295,-500.0,0.00012328,2]
[326886218,1715541055304,-359.62,0.00012328,2]
[326886220,1715541055313,-510.65,0.00012328,2]
[326886222,1715541055323,-510.65,0.00012328,2]
[326886224,1715541055332,-510.65,0.00012328,2]
[326886226,1715541055342,-373.81752852,0.00012328,2]
[326886228,1715541055351,-510.65,0.00012328,2]
[326886230,1715541055360,-510.65,0.00012328,2]
[326886232,1715541055369,-510.65,0.00012328,2]
[326886234,1715541055379,-510.65,0.00012328,2]
[326886236,1715541055388,-510.65,0.00012328,2]
[326886238,1715541055398,-510.65,0.00012328,2]
[326886240,1715541055407,-500.0,0.00012328,2]
[326886242,1715541055417,-510.65,0.00012328,2]
[326886244,1715541055427,-500.0,0.00012328,2]
[326886246,1715541055436,-510.65,0.00012328,2]
[326886248,1715541055447,-500.0,0.00012328,2]
[326886251,1715541055457,-510.65,0.00012328,2]
[326886253,1715541055467,-580.47443407,0.00012328,2]
[326886402,1715541084654,1103.33259888,9.246e-05,2]
[326886418,1715541666075,-155.0,0.00011243,2]
[326886419,1715541666097,-155.0,0.00011244,2]
[326886420,1715541666120,-155.0,0.00011245,2]
[326886421,1715541666144,-138.0,0.0001125,2]
[326886427,1715541823103,523.73787473,7.812e-05,2]
[326886428,1715541823124,760.24605261,7.812e-05,2]
[326886435,1715541939676,322.52570113,0.0001,2]
[326886437,1715541967250,155.0,7.812e-05,2]
[326886438,1715541971632,226.10880668,9e-05,2]
[326886440,1715541983184,156.06605412,7.812e-05,2]
[326886637,1715542232290,-158.24537954,0.00010694,2]
[326886638,1715542232300,-381.53974456,0.000107,2]
[326886659,1715542234015,-295.51751321,0.000107,2]
[326886662,1715542234028,-1256.0721124,0.000107,2]
[326886664,1715542234039,-960.42655982,0.000107,2]
[326886693,1715542238235,-1222.11811377,0.000107,2]
[326886694,1715542238245,-295.39171076,0.00010787,2]
[326886695,1715542238257,-586.27968751,0.00010787,2]
[326886696,1715542238268,-134.76490173,0.00010787,2]
[326886697,1715542238277,-155.0,0.00010794,2]
[326886698,1715542238287,-150.0,0.00010886,2]
[326886699,1715542238296,-64.44818995,0.00010887,2]
[326886700,1715542238469,-479.23585153,0.00010887,2]
[326886701,1715542238483,-1687.83595852,0.00010887,2]
[326886702,1715542238492,-290.5656296,0.00010887,2]
[326886703,1715542238504,-723.1443704,0.00010887,2]
[326886704,1715542238514,-250.0,0.00010894,2]
[326886705,1715542238526,-544.0,0.00010903,2]
[326886706,1715542238535,-250.0,0.00010908,2]
[326886707,1715542238545,-1000.0,0.0001091,2]
[326886708,1715542238554,-156.59,0.00010969,2]
[326886709,1715542238563,-156.59,0.00011013,2]
[326886710,1715542238573,-752.59,0.0001105,2]
[326886711,1715542238582,-156.59,0.00011057,2]
[326886712,1715542238591,-156.59,0.00011101,2]
[326886713,1715542238600,-156.59,0.00011145,2]
[326886714,1715542238609,-156.59,0.00011189,2]
[326886715,1715542238619,-156.59,0.00011233,2]
[326886716,1715542238628,-156.59,0.00011277,2]
[326886717,1715542238638,-173.93,0.00011292,2]
[326886718,1715542238648,-156.59,0.00011321,2]
[326886719,1715542238657,-156.59,0.00011364,2]
[326886720,1715542238666,-153.09,0.00011379,2]
[326886721,1715542238677,-156.59,0.00011408,2]
[326886722,1715542238686,-153.09,0.00011436,2]
[326886723,1715542238696,-456.0,0.00011452,2]
[326886725,1715542238706,-156.59,0.00011452,2]
[326886727,1715542238715,-9321.9478011,0.00011483,2]
[326886729,1715542238727,-3484.8087989,0.00011483,2]
[326886730,1715542238738,-156.59,0.00011496,2]
[326886731,1715542238748,-156.59,0.0001154,2]
[326886732,1715542238758,-150.0,0.000116,2]
[326886733,1715542238768,-150.0,0.000116,2]
[326886734,1715542238778,-150.0,0.000116,2]
[326886735,1715542238787,-150.0,0.000117,2]
[326886736,1715542238797,-150.0,0.000118,2]
[326886737,1715542238807,-1000.0,0.000121,2]
[326886738,1715542238817,-3503.24646015,0.00012199,2]
[326886739,1715542238827,-150.0,0.000122,2]
[326886740,1715542238836,-150.0,0.000122,2]
[326886741,1715542238847,-170.41266714,0.00012204,2]
[326886742,1715542238859,-1500.0,0.00012214,2]
[326886743,1715542238869,-479.2358,0.00012228,2]
[326886744,1715542238879,-1594.2422,0.00012228,2]
[326886745,1715542238889,-175.01625736,0.00012228,2]
[326886746,1715542238901,-154.25727268,0.00012228,2]
[326886747,1715542238912,-183.98960459,0.00012228,2]
[326886748,1715542238923,-658.51460394,0.00012228,2]
[326886749,1715542238933,-544.0,0.00012266,2]
[326886750,1715542238944,-154.2572726,0.00012275,2]
[326886751,1715542238955,-209.0,0.000123,2]
[326886752,1715542238965,-160.57,0.00012318,2]
[326886753,1715542238975,-160.57,0.00012318,2]
[326886754,1715542238988,-154.2572726,0.00012321,2]
[326886755,1715542238998,-1560.92970343,0.00012321,2]
[326886756,1715542239008,-10827.5510066,0.00012324,2]
[326886757,1715542239019,-1295.8045033,0.00012324,2]
[326886758,1715542239029,-16049.3801639,0.00012324,2]
[326886759,1715542239040,-1627.446509,0.00012324,2]
[326886760,1715542239050,-84414.10449279,0.00012324,2]
[326886761,1715542240355,-379.9422459,0.00012324,2]
[326886762,1715542240367,-8761.94712182,0.00012324,2]
[326886763,1715542240648,-197.23787276,0.00012228,2]
[326886764,1715542240658,-14482.66055072,0.00012324,2]
[326886765,1715542240670,-828820.54558877,0.00012324,2]
[326886766,1715542240679,-192.82741751,0.00012326,2]
[326886767,1715542240689,-573.59730439,0.00012326,7]
[326886768,1715542240701,-642.55606289,0.00012326,2]
[326886769,1715542240711,-488.22405721,0.00012326,2]
[326886770,1715542240720,-200.80038782,0.00012326,2]
[326886771,1715542240730,-2382.39921483,0.00012326,2]
[326886772,1715542240740,-749.06207595,0.00012326,2]
[326886773,1715542240749,-6212.11693923,0.00012326,2]
[326886774,1715542240759,-430.87701931,0.00012326,2]
[326886776,1715542241041,-254.2167413,0.00012326,2]
[326886777,1715542241058,-16773.36788953,0.00012326,2]
[326886778,1715542241068,-269.87300239,0.00012326,2]
[326886779,1715542241078,-180.99989025,0.00012326,2]
[326886780,1715542241088,-437.63224991,0.00012326,2]
[326886781,1715542241098,-762.41934842,0.00012326,2]
[326886782,1715542241108,-155.76948322,0.00012326,2]
[326886783,1715542241117,-214.51359259,0.00012326,2]
[326886784,1715542241127,-172.5998299,0.00012326,2]
[326886785,1715542241137,-503.85224682,0.00012326,2]
[326886786,1715542241146,-274.70024006,0.00012326,2]
[326886787,1715542241156,-7506.69243159,0.00012326,2]
[326886788,1715542241166,-207.77106734,0.00012327,2]
[326886789,1715542241176,-5863.25440605,0.00012327,2]
[326886790,1715542241186,-648.0,0.00012328,2]
[326886791,1715542241196,-451942.79252955,0.00012328,2]
[326886792,1715542241206,-507.04965098,0.00012328,2]
[326886793,1715542241215,-236.884873,0.00012328,2]
[326886794,1715542241225,-153.512221,0.00012328,2]
[326886795,1715542241236,-500.0,0.00012328,2]
[326886796,1715542241246,-500.0,0.00012328,2]
[326886797,1715542241255,-500.0,0.00012328,2]
[326886798,1715542241265,-500.0,0.00012328,2]
[326886799,1715542241274,-500.0,0.00012328,2]
[326886800,1715542241284,-500.0,0.00012328,2]
[326886801,1715542241293,-500.0,0.00012328,2]
[326886802,1715542241303,-500.0,0.00012328,2]
[326886803,1715542241313,-500.0,0.00012328,2]
[326886804,1715542241323,-500.0,0.00012328,2]
[326886805,1715542241332,-500.0,0.00012328,2]
[326886806,1715542241342,-500.0,0.00012328,2]
[326886807,1715542241352,-500.0,0.00012328,2]
[326886808,1715542241361,-500.0,0.00012328,2]
[326886809,1715542241371,-500.0,0.00012328,2]
[326886810,1715542241381,-500.0,0.00012328,2]
[326886811,1715542241391,-500.0,0.00012328,2]
[326886812,1715542241401,-500.0,0.00012328,2]
[326886813,1715542241410,-500.0,0.00012328,2]
[326886814,1715542241421,-500.0,0.00012328,2]
[326886815,1715542241431,-500.0,0.00012328,2]
[326886816,1715542241442,-500.0,0.00012328,2]
[326886817,1715542241456,-418.44,0.00012328,2]
[326886818,1715542241466,-500.0,0.00012328,2]
[326886819,1715542241476,-500.0,0.00012328,2]
[326886820,1715542241489,-500.0,0.00012328,2]
[326886821,1715542241499,-500.0,0.00012328,2]
[326886822,1715542241508,-500.0,0.00012328,2]
[326886823,1715542241517,-500.0,0.00012328,2]
[326886824,1715542241528,-500.0,0.00012328,2]
[326886825,1715542241538,-500.0,0.00012328,2]
[326886826,1715542241548,-500.0,0.00012328,2]
[326886827,1715542241558,-500.0,0.00012328,2]
[326886828,1715542241568,-500.0,0.00012328,2]
[326886829,1715542241578,-500.0,0.00012328,2]
[326886830,1715542241587,-500.0,0.00012328,2]
[326886831,1715542241597,-500.0,0.00012328,2]
[326886832,1715542241606,-500.0,0.00012328,2]
[326886833,1715542241616,-500.0,0.00012328,2]
[326886834,1715542241625,-500.0,0.00012328,2]
[326886835,1715542241635,-500.0,0.00012328,2]
[326886836,1715542241645,-500.0,0.00012328,2]
[326886837,1715542241654,-500.0,0.00012328,2]
[326886838,1715542241664,-500.0,0.00012328,2]
[326886839,1715542241674,-500.0,0.00012328,2]
[326886840,1715542241683,-500.0,0.00012328,2]
[326886841,1715542241694,-285.00315672,0.00012328,2]
[326886842,1715542241704,-500.0,0.00012328,2]
[326886843,1715542241714,-500.0,0.00012328,2]
[326886844,1715542241724,-500.0,0.00012328,2]
[326886845,1715542241735,-500.0,0.00012328,2]
[326886846,1715542241745,-500.0,0.00012328,2]
[326886847,1715542241755,-205.49343732,0.00012328,2]
[326886848,1715542241765,-500.0,0.00012328,2]
[326886849,1715542241774,-500.0,0.00012328,2]
[326886850,1715542241784,-500.0,0.00012328,2]
[326886851,1715542241794,-500.0,0.00012328,2]
[326886852,1715542241803,-500.0,0.00012328,2]
[326886853,1715542241813,-500.0,0.00012328,2]
[326886854,1715542241822,-500.0,0.00012328,2]
[326886855,1715542241832,-500.0,0.00012328,2]
[326886856,1715542241842,-500.0,0.00012328,2]
[326886857,1715542241852,-500.0,0.00012328,2]
[326886858,1715542241862,-500.0,0.00012328,2]
[326886859,1715542241872,-500.0,0.00012328,2]
[326886860,1715542241882,-574.01,0.00012328,2]
[326886861,1715542241891,-500.0,0.00012328,2]
[326886862,1715542241901,-574.01,0.00012328,2]
[326886863,1715542241911,-500.0,0.00012328,2]
[326886864,1715542241920,-500.0,0.00012328,2]
[326886865,1715542241930,-574.01,0.00012328,2]
[326886866,1715542241939,-500.0,0.00012328,2]
[326886867,1715542241948,-500.0,0.00012328,2]
[326886868,1715542241958,-574.01,0.00012328,2]
[326886869,1715542241967,-500.0,0.00012328,2]
[326886870,1715542241977,-500.0,0.00012328,2]
[326886871,1715542241988,-574.01,0.00012328,2]
[326886872,1715542241998,-500.0,0.00012328,2]
[326886873,1715542242009,-574.01,0.00012328,2]
[326886874,1715542242019,-500.0,0.00012328,2]
[326886875,1715542242029,-574.01,0.00012328,2]
[326886876,1715542242039,-500.0,0.00012328,2]
[326886877,1715542242049,-500.0,0.00012328,2]
[326886878,1715542242060,-574.01,0.00012328,2]
[326886879,1715542242070,-500.0,0.00012328,2]
[326886880,1715542242080,-500.0,0.00012328,2]
[326886881,1715542242091,-574.01,0.00012328,2]
[326886882,1715542242101,-500.0,0.00012328,2]
[326886883,1715542242111,-574.01,0.00012328,2]
[326886884,1715542242120,-620.45177957,0.00012328,2]
[326886885,1715542242129,-500.0,0.00012328,2]
[326886886,1715542242139,-574.01,0.00012328,2]
[326886887,1715542242149,-500.0,0.00012328,2]
[326886888,1715542242159,-574.01,0.00012328,2]
[326886889,1715542242168,-500.0,0.00012328,2]
[326886890,1715542242178,-574.01,0.00012328,2]
[326886891,1715542242187,-989.14,0.00012328,2]
[326886892,1715542242197,-500.0,0.00012328,2]
[326886893,1715542242206,-574.01,0.00012328,2]
[326886894,1715542242216,-500.0,0.00012328,2]
[326886895,1715542242226,-500.0,0.00012328,2]
[326886896,1715542242238,-989.14,0.00012328,2]
[326886897,1715542242248,-574.01,0.00012328,2]
[326886898,1715542242258,-500.0,0.00012328,2]
[326886899,1715542242268,-574.01,0.00012328,2]
[326886900,1715542242278,-989.14,0.00012328,2]
[326886901,1715542242288,-574.01,0.00012328,2]
[326886902,1715542242298,-500.0,0.00012328,2]
[326886903,1715542242307,-989.14,0.00012328,2]
[326886904,1715542242317,-574.01,0.00012328,2]
[326886905,1715542242327,-500.0,0.00012328,2]
[326886906,1715542242336,-989.14,0.00012328,2]
[326886907,1715542242346,-574.01,0.00012328,2]
[326886908,1715542242357,-989.14,0.00012328,2]
[326886909,1715542242367,-500.0,0.00012328,2]
[326886910,1715542242377,-500.0,0.00012328,2]
[326886911,1715542242387,-500.0,0.00012328,2]
[326886912,1715542242397,-574.01,0.00012328,2]
[326886913,1715542242407,-989.14,0.00012328,2]
[326886914,1715542242416,-500.0,0.00012328,2]
[326886915,1715542242426,-989.14,0.00012328,2]
[326886916,1715542242440,-574.01,0.00012328,2]
[326886917,1715542242449,-500.0,0.00012328,2]
[326886918,1715542242459,-500.0,0.00012328,2]
[326886919,1715542242468,-989.14,0.00012328,2]
[326886920,1715542242478,-574.01,0.00012328,2]
[326886921,1715542242490,-500.0,0.00012328,2]
[326886922,1715542242499,-500.0,0.00012328,2]
[326886923,1715542242510,-989.14,0.00012328,2]
[326886924,1715542242520,-574.01,0.00012328,2]
[326886925,1715542242529,-500.0,0.00012328,2]
[326886926,1715542242539,-574.149353,0.00012328,2]
[326886927,1715542242548,-500.0,0.00012328,2]
[326886928,1715542242558,-989.14,0.00012328,2]
[326886929,1715542242568,-500.0,0.00012328,2]
[326886930,1715542242577,-989.14,0.00012328,2]
[326886931,1715542242587,-500.0,0.00012328,2]
[326886932,1715542242597,-989.14,0.00012328,2]
[326886933,1715542242607,-500.0,0.00012328,2]
[326886934,1715542242616,-989.14,0.00012328,2]
[326886935,1715542242627,-500.0,0.00012328,2]
[326886936,1715542242637,-989.14,0.00012328,2]
[326886937,1715542242646,-500.0,0.00012328,2]
[326886938,1715542242656,-989.14,0.00012328,2]
[326886939,1715542242665,-500.0,0.00012328,2]
[326886940,1715542242674,-989.14,0.00012328,2]
[326886941,1715542242684,-500.0,0.00012328,2]
[326886942,1715542242694,-989.14,0.00012328,2]
[326886943,1715542242703,-500.0,0.00012328,2]
[326886944,1715542242713,-500.0,0.00012328,2]
[326886945,1715542242722,-989.14,0.00012328,2]
[326886946,1715542242733,-500.0,0.00012328,2]
[326886947,1715542242743,-500.0,0.00012328,2]
[326886948,1715542242752,-989.14,0.00012328,2]
[326886949,1715542242762,-500.0,0.00012328,2]
[326886950,1715542242771,-989.14,0.00012328,2]
[326886951,1715542242781,-500.0,0.00012328,2]
[326886952,1715542242791,-989.14,0.00012328,2]
[326886953,1715542242800,-282.83076684,0.00012328,2]
[326886954,1715542242810,-500.0,0.00012328,2]
[326886955,1715542242820,-989.14,0.00012328,2]
[326886956,1715542242830,-989.35382848,0.00012328,2]
[326886957,1715542242840,-500.0,0.00012328,2]
[326886958,1715542242850,-500.0,0.00012328,2]
[326886959,1715542242860,-500.0,0.00012328,2]
[326886960,1715542242870,-500.0,0.00012328,2]
[326886961,1715542242880,-500.0,0.00012328,2]
[326886962,1715542242889,-500.0,0.00012328,2]
[326886963,1715542242899,-500.0,0.00012328,2]
[326886964,1715542242909,-500.0,0.00012328,2]
[326886965,1715542242919,-357.70598245,0.00012328,2]
[326886966,1715542242929,-500.0,0.00012328,2]
[326886967,1715542242938,-500.0,0.00012328,2]
[326886968,1715542242948,-500.0,0.00012328,2]
[326886969,1715542242958,-500.0,0.00012328,2]
[326886970,1715542242968,-500.0,0.00012328,2]
[326886971,1715542242978,-500.0,0.00012328,2]
[326886972,1715542242990,-500.0,0.00012328,2]
[326886973,1715542243000,-500.0,0.00012328,2]
[326886974,1715542243010,-156.97148129,0.00012328,2]
[326886975,1715542243021,-500.0,0.00012328,2]
[326886976,1715542243031,-500.0,0.00012328,2]
[326886977,1715542243042,-500.0,0.00012328,2]
[326886978,1715542243052,-500.0,0.00012328,2]
[326886979,1715542243062,-500.0,0.00012328,2]
[326886980,1715542243071,-500.0,0.00012328,2]
[326886981,1715542243081,-500.0,0.00012328,2]
[326886982,1715542243091,-500.0,0.00012328,2]
[326886983,1715542243101,-500.0,0.00012328,2]
[326886984,1715542243110,-500.0,0.00012328,2]